fUST/lending_fUST_20250125
["ID","MTS","AMOUNT","RATE_DAILY","PERIOD"]
[350319243,1737787847827,-500.0,0.00018166,2]
[350319244,1737787847836,-500.0,0.00018166,2]
[350319245,1737787847845,-500.0,0.00018166,2]
[350319246,1737787847857,-732.77,0.00018166,2]
[350319247,1737787847866,-500.0,0.00018166,2]
[350319248,1737787847876,-500.0,0.00018166,2]
[350319249,1737787847887,-806.68,0.00018166,2]
[350319250,1737787847897,-615.31,0.00018166,2]
[350319251,1737787847907,-500.0,0.00018166,2]
[350319252,1737787847917,-500.0,0.00018166,2]
[350319253,1737787847927,-509.96,0.00018166,2]
[350319254,1737787847937,-500.0,0.00018166,2]
[350319255,1737787847947,-500.0,0.00018166,2]
[350319256,1737787847957,-500.0,0.00018166,2]
[350319257,1737787847968,-748.64,0.00018166,2]
[350319258,1737787847977,-325.98013287,0.00018166,2]
[350319259,1737787847988,-705.46,0.00018166,2]
[350319260,1737787847998,-635.25,0.00018166,2]
[350319261,1737787848008,-500.0,0.00018166,2]
[350319262,1737787848017,-593.39599751,0.00018166,2]
[350319263,1737787848026,-517.00591423,0.00018166,2]
[350319264,1737787848035,-500.0,0.00018166,2]
[350319265,1737787848045,-500.0,0.00018166,2]
[350319266,1737787848055,-1096.48303685,0.00018166,2]
[350319267,1737787871390,226.655,0.0001736,2]
[350319268,1737787903974,8537.2214688,0.00016918,2]
[350319269,1737787904011,286.93646988,0.00017574,2]
[350319270,1737787914828,284.875978,0.00017574,2]
[350319271,1737787937986,234.861,0.0001736,2]
[350319272,1737788024023,370.57912241,0.00017476,2]
[350319273,1737788043285,370.57912241,0.00017476,2]
[350319274,1737788055403,1143.8536845,0.00016787,2]
[350319275,1737788065177,260.5118275,0.00016753,2]
[350319278,1737788317344,2078.00610573,0.00017553,2]
[350319279,1737788372924,1024.130027,0.00016751,2]
[350319280,1737788395736,158.901356,0.00013973,2]
[350319281,1737788604484,225.151,0.0001736,2]
[350319282,1737788671979,202.2529515,0.00016751,2]
[350319284,1737788786377,290.010979,0.00016752,2]
[350319315,1737789032592,-370.57912241,0.0001765,2]
[350319317,1737789032601,-86.07087759,0.00017699,2]
[350319319,1737789032613,-213.92912241,0.00017699,2]
[350319321,1737789032623,-19200.0,0.000177,3]
[350319323,1737789032631,-500.0,0.00017749,2]
[350319325,1737789032641,-572.4,0.00017749,2]
[350319327,1737789032651,-2612.04,0.00017749,2]
[350319329,1737789032660,-500.0,0.00017749,2]
[350319331,1737789032670,-1332.83,0.00017749,2]
[350319334,1737789032679,-1000.0,0.00017749,7]
[350319335,1737789032688,-1090.25,0.00017749,2]
[350319338,1737789032698,-500.0,0.00017749,2]
[350319339,1737789032708,-500.0,0.00017749,2]
[350319342,1737789032718,-500.0,0.00017749,2]
[350319343,1737789032727,-500.0,0.00017749,2]
[350319346,1737789032738,-517.49330595,0.00017749,2]
[350319347,1737789032747,-573.71,0.0001775,2]
[350319349,1737789032756,-500.0,0.0001775,2]
[350319351,1737789032766,-255.87414393,0.0001775,2]
[350319353,1737789032776,-211.5784816,0.0001775,2]
[350319354,1737789032786,-500.0,0.0001775,2]
[350319355,1737789032796,-500.0,0.0001775,2]
[350319356,1737789032805,-500.0,0.0001775,2]
[350319357,1737789032815,-612.66043186,0.0001775,2]
[350319358,1737789032824,-176.58071581,0.0001775,2]
[350319359,1737789032834,-497.81786661,0.0001775,2]
[350319360,1737789032843,-500.0,0.0001775,2]
[350319361,1737789032853,-500.0,0.0001775,2]
[350319362,1737789032862,-500.0,0.0001775,2]
[350319363,1737789032871,-500.0,0.0001775,2]
[350319364,1737789032881,-500.0,0.0001775,2]
[350319365,1737789032891,-500.0,0.0001775,2]
[350319366,1737789032900,-500.0,0.0001775,2]
[350319367,1737789032910,-500.0,0.0001775,2]
[350319368,1737789032919,-510.34715377,0.0001775,2]
[350319369,1737789032929,-500.0,0.0001775,2]
[350319370,1737789032938,-500.0,0.0001775,2]
[350319371,1737789032947,-500.0,0.0001775,2]
[350319372,1737789032957,-500.0,0.0001775,2]
[350319373,1737789032967,-500.0,0.0001775,2]
[350319374,1737789032980,-500.0,0.0001775,2]
[350319375,1737789032989,-528.93412802,0.0001775,2]
[350319376,1737789032999,-500.0,0.0001775,2]
[350319377,1737789033009,-500.0,0.0001775,2]
[350319378,1737789033020,-500.0,0.0001775,2]
[350319379,1737789033029,-500.0,0.0001775,2]
[350319380,1737789033039,-500.0,0.0001775,2]
[350319381,1737789033048,-500.0,0.0001775,2]
[350319382,1737789033059,-500.0,0.0001775,2]
[350319384,1737789033068,-500.0,0.0001775,2]
[350319385,1737789033078,-649.7489689,0.0001775,2]
[350319386,1737789033088,-500.0,0.0001775,2]
[350319387,1737789033097,-296.51529557,0.0001775,2]
[350319388,1737789033107,-500.0,0.0001775,2]
[350319389,1737789033116,-500.0,0.0001775,2]
[350319390,1737789033126,-500.0,0.0001775,2]
[350319391,1737789033135,-500.0,0.0001775,2]
[350319392,1737789033144,-500.0,0.0001775,2]
[350319393,1737789033154,-500.0,0.0001775,2]
[350319394,1737789033163,-500.0,0.0001775,2]
[350319395,1737789033172,-500.0,0.0001775,2]
[350319396,1737789033182,-500.0,0.0001775,2]
[350319397,1737789033191,-500.0,0.0001775,2]
[350319398,1737789033201,-381.85925877,0.0001775,2]
[350319399,1737789033210,-614.3,0.0001775,2]
[350319400,1737789033220,-517.63016935,0.0001775,2]
[350319401,1737789033229,-3417.82,0.0001775,2]
[350319402,1737789033239,-561.39,0.0001775,2]
[350319403,1737789033249,-500.0,0.0001775,2]
[350319404,1737789033259,-538.04,0.0001775,2]
[350319405,1737789033268,-500.0,0.0001775,2]
[350319406,1737789033278,-5852.46,0.0001775,2]
[350319407,1737789033288,-193.78666283,0.0001775,2]
[350319408,1737789033297,-500.0,0.0001775,2]
[350319409,1737789033306,-500.0,0.0001775,2]
[350319410,1737789033316,-500.0,0.0001775,2]
[350319411,1737789033326,-2209.93,0.0001775,2]
[350319412,1737789033335,-513.23008305,0.0001775,2]
[350319413,1737789033345,-2582.41,0.0001775,2]
[350319414,1737789033354,-500.0,0.0001775,2]
[350319415,1737789033363,-1309.95,0.0001775,2]
[350319416,1737789033372,-500.0,0.0001775,2]
[350319417,1737789033382,-500.0,0.0001775,2]
[350319418,1737789033391,-957.78,0.0001775,2]
[350319419,1737789033400,-500.0,0.0001775,2]
[350319420,1737789033410,-500.0,0.0001775,2]
[350319421,1737789033419,-500.0,0.0001775,2]
[350319422,1737789033428,-11685.41,0.0001775,2]
[350319423,1737789033438,-500.0,0.0001775,2]
[350319424,1737789033447,-500.0,0.0001775,2]
[350319425,1737789033456,-500.0,0.0001775,2]
[350319426,1737789033465,-500.0,0.0001775,2]
[350319427,1737789033474,-500.0,0.0001775,2]
[350319428,1737789033484,-500.0,0.0001775,2]
[350319429,1737789033493,-858.07,0.0001775,2]
[350319430,1737789033507,-500.0,0.0001775,2]
[350319431,1737789033517,-512.2333439,0.0001775,2]
[350319432,1737789033527,-1430.59,0.0001775,2]
[350319433,1737789033536,-895.01,0.0001775,2]
[350319434,1737789033546,-500.0,0.0001775,2]
[350319435,1737789033556,-2639.72,0.0001775,2]
[350319436,1737789033565,-2554.00170344,0.0001775,2]
[350319457,1737789038743,-167.6199377,0.0001765,2]
[350319458,1737789038752,-500.0,0.00017749,2]
[350319459,1737789038762,-1114.68829656,0.0001775,2]
[350319460,1737789038772,-500.0,0.0001775,2]
[350319461,1737789038782,-500.0,0.0001775,2]
[350319462,1737789038793,-500.0,0.0001775,2]
[350319463,1737789038802,-500.0,0.0001775,2]
[350319464,1737789038812,-500.0,0.0001775,2]
[350319465,1737789038823,-500.0,0.0001775,2]
[350319466,1737789038834,-500.0,0.0001775,2]
[350319467,1737789038843,-500.0,0.0001775,2]
[350319468,1737789038853,-500.0,0.0001775,2]
[350319469,1737789038863,-1235.47,0.0001775,2]
[350319470,1737789038873,-508.51595469,0.0001775,2]
[350319471,1737789038883,-2733.4,0.0001775,2]
[350319472,1737789038893,-500.0,0.0001775,2]
[350319473,1737789038904,-500.0,0.0001775,2]
[350319474,1737789038913,-1759.33,0.0001775,2]
[350319475,1737789038923,-7915.96241545,0.0001775,2]
[350319476,1737789038937,-485.93824471,0.0001775,2]
[350319497,1737789044750,-167.61993769,0.00017651,2]
[350319499,1737789044761,-1689.95606351,0.0001775,2]
[350319515,1737789048332,21972.8563913,0.00016758,2]
[350319516,1737789060802,167.61993769,0.00017474,2]
[350319517,1737789069505,167.61993769,0.00017474,2]
[350319518,1737789074503,371.96890123,0.0001755,2]
[350319519,1737789078266,167.61993769,0.00017474,2]
[350319520,1737789087208,167.61993769,0.00017474,2]
[350319521,1737789146323,233.094,0.0001726,2]
[350319524,1737789327393,158.901356,0.00013973,2]
[350319527,1737789425278,222.4126848,0.0001675,2]
[350319528,1737789478873,262.52,0.00010959,2]
[350319529,1737789489599,218.77,0.00010959,2]
[350319530,1737789500521,182.3,0.00010959,2]
[350319531,1737789511241,151.92,0.00010959,2]
[350319532,1737789521734,759.63,0.00010959,2]
[350319533,1737789560913,369.0927659,0.00016883,2]
[350319534,1737789699785,262.764089,0.00016749,2]
[350319538,1737789816355,223.31,0.0001726,2]
[350319561,1737790109687,24900.0,0.00016747,2]
[350319565,1737790221778,158.901356,0.00013973,2]
[350319611,1737790233194,-324.2567321,0.00017647,2]
[350319613,1737790233204,-151.0,0.000177,2]
[350319615,1737790233214,-300.0,0.00017745,2]
[350319617,1737790233224,-2503.21,0.00017746,2]
[350319619,1737790233235,-1000.0,0.00017746,7]
[350319621,1737790233245,-548.55,0.00017746,2]
[350319623,1737790233255,-1044.83,0.00017746,2]
[350319625,1737790233264,-500.0,0.00017746,2]
[350319627,1737790233274,-500.0,0.00017746,2]
[350319629,1737790233284,-1277.3,0.00017746,2]
[350319631,1737790233294,-271.72756187,0.00017746,2]
[350319633,1737790233304,-500.0,0.00017746,2]
[350319635,1737790233314,-477.3905884,0.00017746,2]
[350319638,1737790233325,-500.0,0.00017746,2]
[350319640,1737790233335,-500.0,0.00017746,2]
[350319642,1737790233345,-219.72425494,0.00017746,2]
[350319644,1737790233355,-500.0,0.00017746,2]
[350319648,1737790233369,-500.0,0.00017746,2]
[350319650,1737790233378,-500.0,0.00017746,2]
[350319653,1737790233388,-500.0,0.00017746,2]
[350319656,1737790233398,-500.0,0.00017746,2]
[350319659,1737790233410,-500.0,0.00017746,2]
[350319662,1737790233419,-500.0,0.00017746,2]
[350319665,1737790233429,-541.91808656,0.00017746,2]
[350319668,1737790233440,-500.0,0.00017746,2]
[350319670,1737790233449,-500.0,0.00017746,2]
[350319672,1737790233461,-500.0,0.00017746,2]
[350319701,1737790233626,-482.76694128,0.00017746,2]
[350319703,1737790233636,-294.4165521,0.00017746,2]
[350319705,1737790233647,-325.09766889,0.00017746,2]
[350319707,1737790233657,-500.0,0.00017746,2]
[350319709,1737790233666,-599.89531609,0.00017746,2]
[350319711,1737790233676,-500.0,0.00017746,2]
[350319713,1737790233686,-317.64707151,0.00017746,2]
[350319715,1737790233695,-500.0,0.00017747,2]
[350319717,1737790233705,-500.0,0.00017747,2]
[350319718,1737790233714,-532.4,0.00017747,2]
[350319719,1737790233724,-500.0,0.00017747,2]
[350319720,1737790233734,-500.0,0.00017747,2]
[350319721,1737790233743,-894.13,0.00017747,2]
[350319722,1737790233753,-506.55253723,0.00017747,2]
[350319723,1737790233763,-500.0,0.00017747,2]
[350319724,1737790233774,-569.72,0.00017747,2]
[350319725,1737790233784,-500.0,0.00017747,2]
[350319726,1737790233795,-1099.08,0.00017747,2]
[350319727,1737790233805,-701.79,0.00017747,2]
[350319728,1737790233815,-500.0,0.00017747,2]
[350319729,1737790233824,-473.72097978,0.00017747,2]
[350319734,1737790238594,-500.0,0.00017746,2]
[350319735,1737790238729,-351.9579961,0.00017746,2]
[350319736,1737790238740,-500.0,0.00017746,2]
[350319737,1737790238750,-500.0,0.00017746,2]
[350319740,1737790238760,-523.47613278,0.00017747,5]
[350319742,1737790238772,-4965.37987732,0.00017747,5]
[350319772,1737790241015,-496.750002,0.00017747,5]
[350319773,1737790241028,-662.88304606,0.00017747,5]
[350319774,1737790241038,-26.27902022,0.00017747,2]
[350319775,1737790241050,-782.22,0.00017747,2]
[350319776,1737790241060,-405.35022938,0.00017747,2]
[350319784,1737790243680,-94.64977062,0.00017747,2]
[350319785,1737790243690,-506.23356318,0.00017747,2]
[350319786,1737790243699,-682.35,0.00017747,2]
[350319787,1737790243709,-505.82860677,0.00017747,2]
[350319788,1737790243719,-740.85,0.00017747,2]
[350319789,1737790243728,-500.0,0.00017747,2]
[350319790,1737790243738,-500.0,0.00017747,2]
[350319791,1737790243747,-458.8612915,0.00017747,2]
[350319792,1737790243758,-48.38730763,0.00017747,2]
[350319793,1737790243768,-599.22008102,0.00017747,2]
[350319794,1737790243779,-35.69991898,0.00017747,2]
[350319795,1737790243789,-500.0,0.00017747,2]
[350319796,1737790243799,-451.62008108,0.00017747,2]
[350319810,1737790249988,1385.14035511,0.0001757,2]
[350319811,1737790261181,1340.06423461,0.00017569,2]
[350319812,1737790334007,230.943,0.0001726,2]
[350319813,1737790537564,-5294.03498597,0.00017645,2]
[350319814,1737790537593,-283.72464064,0.00017646,2]
[350319815,1737790537621,-192.80349967,0.00017646,2]
[350319816,1737790537644,-192.80349966,0.00017647,2]
[350319817,1737790537666,-192.80349966,0.00017647,2]
[350319818,1737790537705,-300.0,0.00017745,2]
[350319819,1737790537996,-6146.72510878,0.00017746,5]
[350319820,1737790538041,-549.81,0.00017746,2]
[350319821,1737790538066,-500.0,0.00017746,2]
[350319822,1737790538090,-500.0,0.00017746,2]
[350319823,1737790538112,-500.0,0.00017746,2]
[350319824,1737790538136,-510.21,0.00017746,2]
[350319825,1737790538161,-500.0,0.00017746,2]
[350319826,1737790538184,-500.0,0.00017746,2]
[350319827,1737790538206,-856.88,0.00017746,2]
[350319828,1737790538229,-500.0,0.00017746,2]
[350319829,1737790538254,-5608.61,0.00017746,2]
[350319830,1737790538280,-2117.85,0.00017746,2]
[350319831,1737790538303,-328.34210211,0.00017746,2]
[350319832,1737790538325,-500.0,0.00017746,2]
[350319833,1737790538349,-1255.37,0.00017746,2]
[350319834,1737790538371,-570.77,0.00017746,2]
[350319835,1737790538396,-2474.81,0.00017746,2]
[350319836,1737790538418,-500.0,0.00017746,2]
[350319837,1737790538440,-500.0,0.00017746,2]
[350319838,1737790538463,-917.87,0.00017746,2]
[350319839,1737790538486,-500.0,0.00017746,2]
[350319840,1737790538510,-500.0,0.00017746,2]
[350319841,1737790538536,-500.0,0.00017746,2]
[350319842,1737790538562,-500.0,0.00017746,2]
[350319843,1737790538587,-1053.28,0.00017746,2]
[350319844,1737790538609,-502.34161475,0.00017746,2]
[350319845,1737790538633,-672.55,0.00017746,2]
[350319846,1737790538657,-1370.98,0.00017746,2]
[350319847,1737790538681,-500.0,0.00017746,2]
[350319848,1737790538705,-857.72,0.00017746,2]
[350319849,1737790538731,-2398.91,0.00017746,2]
[350319850,1737790538755,-822.31,0.00017746,2]
[350319851,1737790538783,-2529.73,0.00017746,2]
[350319852,1737790538808,-525.7,0.00017746,2]
[350319853,1737790538831,-244.0188689,0.00017746,7]
[350319854,1737790538856,-3515.83,0.00017746,2]
[350319855,1737790538882,-1001.29,0.00017746,2]
[350319856,1737790538905,-500.0,0.00017746,2]
[350319857,1737790538926,-1453.6,0.00017746,2]
[350319858,1737790538949,-500.0,0.00017746,2]
[350319859,1737790538972,-500.0,0.00017746,2]
[350319860,1737790538995,-709.98,0.00017746,2]
[350319861,1737790539017,-500.0,0.00017746,2]
[350319862,1737790539040,-749.63,0.00017746,2]
[350319863,1737790539063,-500.0,0.00017746,2]
[350319864,1737790539087,-500.0,0.00017746,2]
[350319865,1737790539111,-500.0,0.00017746,2]
[350319866,1737790539133,-223.04094273,0.00017746,2]
[350319867,1737790539155,-653.91,0.00017746,2]
[350319868,1737790539179,-1183.99,0.00017746,2]
[350319869,1737790539201,-420.63964532,0.00017746,2]
[350319870,1737790539224,-500.0,0.00017746,2]
[350319871,1737790539249,-500.0,0.00017746,2]
[350319872,1737790539273,-500.0,0.00017746,2]
[350319873,1737790539298,-1224.08,0.00017746,2]
[350319874,1737790539323,-500.0,0.00017746,2]
[350319875,1737790539347,-500.0,0.00017746,2]
[350319876,1737790539371,-2182.92,0.00017746,2]
[350319877,1737790539394,-500.0,0.00017746,2]
[350319878,1737790539418,-500.0,0.00017746,2]
[350319879,1737790539444,-500.0,0.00017746,2]
[350319880,1737790539469,-1686.02,0.00017746,2]
[350319881,1737790539494,-608.46,0.00017746,2]
[350319882,1737790539520,-1422.59,0.00017746,2]
[350319883,1737790539548,-551.06,0.00017746,2]
[350319884,1737790539574,-500.0,0.00017746,2]
[350319885,1737790539596,-500.0,0.00017746,2]
[350319886,1737790539620,-500.0,0.00017746,2]
[350319887,1737790539645,-1038.37,0.00017746,2]
[350319888,1737790539670,-3275.41,0.00017746,2]
[350319889,1737790539694,-500.0,0.00017746,2]
[350319890,1737790539718,-500.0,0.00017746,2]
[350319891,1737790539741,-500.0,0.00017746,2]
[350319892,1737790539765,-619.8,0.00017746,2]
[350319893,1737790539787,-553.46,0.00017746,2]
[350319894,1737790539812,-500.0,0.00017746,2]
[350319895,1737790539836,-855.1,0.00017746,2]
[350319896,1737790539859,-538.0,0.00017746,2]
[350319897,1737790539884,-1473.75,0.00017746,2]
[350319898,1737790539906,-506.14008268,0.00017746,2]
[350319899,1737790539929,-500.0,0.00017746,2]
[350319900,1737790539952,-588.7,0.00017746,2]
[350319901,1737790539974,-581.92,0.00017746,2]
[350319902,1737790539998,-500.0,0.00017746,2]
[350319903,1737790540023,-500.0,0.00017746,2]
[350319904,1737790540048,-500.0,0.00017746,2]
[350319905,1737790540071,-3324.24452908,0.00017747,5]
[350319906,1737790540095,-500.0,0.00017747,2]
[350319907,1737790540118,-658.26,0.00017747,2]
[350319908,1737790540142,-500.0,0.00017747,2]
[350319909,1737790540166,-500.0,0.00017747,2]
[350319910,1737790540190,-500.0,0.00017747,2]
[350319911,1737790540215,-1565.74,0.00017747,2]
[350319912,1737790540239,-686.93,0.00017747,2]
[350319913,1737790540263,-500.0,0.00017747,2]
[350319914,1737790540287,-500.0,0.00017747,2]
[350319915,1737790540311,-500.0,0.00017747,2]
[350319916,1737790540334,-500.0,0.00017747,2]
[350319917,1737790540356,-500.0,0.00017747,2]
[350319918,1737790540380,-703.37,0.00017747,2]
[350319919,1737790540403,-503.03863606,0.00017747,2]
[350319920,1737790540426,-523.33,0.00017747,2]
[350319921,1737790540449,-500.0,0.00017747,2]
[350319922,1737790540473,-511.48769953,0.00017747,2]
[350319923,1737790540496,-134.95064446,0.00017747,2]
[350319924,1737790576590,257.371551,0.00016749,2]
[350319926,1737790833917,1385.1670675,0.00016747,2]
[350319927,1737790967728,24900.0,0.00016746,2]
[350319928,1737791023809,221.591,0.0001726,2]
[350319930,1737791144926,163.22753,0.00013973,2]
[350319946,1737791243661,265.0,0.00024,120]
[350319947,1737791267405,200.0,0.00024,120]
[350319950,1737791330711,10000.0,0.000176,2]
[350319951,1737791366416,10000.0,0.000176,2]
[350320026,1737791433267,-248.25906056,0.00017644,2]
[350320028,1737791433279,-192.04331616,0.00017645,2]
[350320030,1737791433290,-300.0,0.00017743,2]
[350320032,1737791433303,-500.0,0.00017743,2]
[350320034,1737791433316,-526.9,0.00017744,2]
[350320037,1737791433329,-3138.93,0.00017744,2]
[350320039,1737791433342,-500.0,0.00017744,2]
[350320041,1737791433355,-316.88422179,0.00017744,2]
[350320043,1737791433369,-233.32170179,0.00017744,2]
[350320045,1737791433381,-500.0,0.00017744,2]
[350320047,1737791433394,-202.78862988,0.00017744,2]
[350320049,1737791433407,-500.0,0.00017744,2]
[350320051,1737791433421,-500.0,0.00017744,2]
[350320053,1737791433433,-500.0,0.00017744,2]
[350320055,1737791433445,-500.0,0.00017744,2]
[350320056,1737791433458,-500.0,0.00017744,2]
[350320057,1737791433471,-500.0,0.00017744,2]
[350320058,1737791433483,-500.0,0.00017744,2]
[350320059,1737791433496,-500.0,0.00017744,2]
[350320060,1737791433509,-500.0,0.00017744,2]
[350320061,1737791433522,-500.0,0.00017744,2]
[350320062,1737791433536,-500.0,0.00017744,2]
[350320063,1737791433549,-500.0,0.00017744,2]
[350320064,1737791433559,-500.0,0.00017744,2]
[350320065,1737791433574,-500.0,0.00017744,2]
[350320066,1737791433587,-500.0,0.00017744,2]
[350320067,1737791433600,-500.0,0.00017744,2]
[350320068,1737791433613,-515.59,0.00017744,2]
[350320069,1737791433625,-500.0,0.00017744,2]
[350320070,1737791433639,-500.0,0.00017744,2]
[350320071,1737791433651,-500.0,0.00017744,2]
[350320072,1737791433664,-500.0,0.00017744,2]
[350320073,1737791433678,-500.0,0.00017744,2]
[350320074,1737791433691,-500.0,0.00017744,2]
[350320075,1737791433704,-500.0,0.00017744,2]
[350320076,1737791433719,-500.0,0.00017744,2]
[350320077,1737791433732,-500.0,0.00017744,2]
[350320078,1737791433743,-500.0,0.00017744,2]
[350320079,1737791433754,-500.0,0.00017744,2]
[350320080,1737791433766,-500.0,0.00017744,2]
[350320081,1737791433779,-500.0,0.00017744,2]
[350320082,1737791433792,-500.0,0.00017744,2]
[350320083,1737791433805,-500.0,0.00017744,2]
[350320084,1737791433819,-500.0,0.00017744,2]
[350320085,1737791433833,-500.0,0.00017744,2]
[350320086,1737791433844,-365.86262452,0.00017744,2]
[350320087,1737791433855,-500.0,0.00017744,2]
[350320088,1737791433867,-500.0,0.00017744,2]
[350320089,1737791433879,-500.0,0.00017744,2]
[350320090,1737791433891,-500.0,0.00017744,2]
[350320091,1737791433904,-5374.92,0.00017744,2]
[350320092,1737791433916,-1606.77,0.00017744,2]
[350320093,1737791433927,-500.0,0.00017744,2]
[350320094,1737791433938,-1203.06,0.00017744,2]
[350320095,1737791433951,-2371.69,0.00017744,2]
[350320096,1737791433962,-1393.04,0.00017744,2]
[350320097,1737791433975,-879.63,0.00017744,2]
[350320098,1737791433986,-500.0,0.00017744,2]
[350320099,1737791433998,-500.0,0.00017744,2]
[350320100,1737791434009,-500.0,0.00017744,2]
[350320101,1737791434021,-500.0,0.00017744,2]
[350320102,1737791434033,-500.0,0.00017744,2]
[350320103,1737791434045,-1313.86,0.00017744,2]
[350320104,1737791434056,-500.0,0.00017744,2]
[350320105,1737791434071,-821.98,0.00017744,2]
[350320106,1737791434082,-101.37818408,0.00017744,2]
[350320151,1737791446805,-398.62181592,0.00017744,2]
[350320152,1737791446816,-123.37818408,0.00017744,2]
[350320153,1737791473096,300.0,0.00017566,2]
[350320154,1737791481476,300.0,0.00017566,2]
[350320155,1737791580610,389075.03028973,0.0001,2]
[350320156,1737791580637,178085.20461087,0.0001,2]
[350320157,1737791581306,398.8765751,0.00017544,2]
[350320159,1737791621999,256.736341,0.00016743,2]
[350320160,1737791622223,514.4245857,0.00017572,2]
[350320161,1737791667219,257.2122928,0.00017572,2]
[350320162,1737791683367,229.567,0.0001686,2]
[350320163,1737791712227,257.2122929,0.00017572,2]
[350320164,1737791712611,823.21976177,0.00017498,2]
[350320165,1737791845525,563.67840536,0.000175,2]
[350320167,1737791976127,17071.9032112,0.00016744,2]
[350320168,1737792033452,160.0,0.00023845,120]
[350320169,1737792081052,-5001.23,0.000176,2]
[350320170,1737792151485,160.0,0.00022443,120]
[350320172,1737792172770,166.904777,0.00013973,2]
[350320173,1737792211388,160.0,0.00023099,120]
[350320174,1737792271948,160.0,0.00022007,120]
[350320177,1737792366876,219.833,0.0001686,2]
[350320178,1737792390942,160.0,0.0002331,120]
[350320179,1737792450941,160.0,0.0002244,120]
[350320180,1737792468361,256.736342,0.00016744,2]
[350320181,1737792510853,160.0,0.00023214,120]
[350320182,1737792570870,160.0,0.00023641,120]
[350320184,1737792631230,160.0,0.00023058,120]
[350320240,1737792632037,-503.60618242,0.0001764,2]
[350320242,1737792632046,-217.22667799,0.00017641,2]
[350320244,1737792632056,-500.0,0.0001774,2]
[350320246,1737792632066,-300.0,0.0001774,2]
[350320248,1737792632075,-212.51703915,0.00017741,2]
[350320250,1737792632084,-500.0,0.00017741,2]
[350320252,1737792632094,-500.0,0.00017741,2]
[350320254,1737792632104,-500.0,0.00017741,2]
[350320256,1737792632114,-186.29423469,0.00017741,2]
[350320258,1737792632123,-500.0,0.00017741,2]
[350320260,1737792632132,-718.39,0.00017741,2]
[350320262,1737792632141,-626.67,0.00017741,2]
[350320264,1737792632151,-500.0,0.00017741,2]
[350320266,1737792632160,-500.0,0.00017741,2]
[350320268,1737792632169,-583.11,0.00017741,2]
[350320270,1737792632178,-500.0,0.00017741,2]
[350320272,1737792632190,-500.0,0.00017741,2]
[350320273,1737792632200,-500.0,0.00017741,2]
[350320274,1737792632210,-819.47,0.00017741,2]
[350320275,1737792632219,-530.4,0.00017741,2]
[350320277,1737792632229,-557.68,0.00017741,2]
[350320278,1737792632238,-7.25544204,0.00017741,2]
[350320279,1737792632249,-492.74455796,0.00017741,2]
[350320280,1737792632258,-630.84,0.00017741,2]
[350320282,1737792632268,-500.0,0.00017741,2]
[350320285,1737792632278,-658.31,0.00017741,2]
[350320287,1737792632287,-3008.15,0.00017741,2]
[350320289,1737792632297,-500.0,0.00017741,2]
[350320291,1737792632305,-500.0,0.00017741,2]